Cogmind - Beta 15 @@@ ROGUE MODE // 2025.06.23 @ 22:51:02 Player: Btuck Result: Destroyed by G-47 Trooper with Particle Gun Performance ------------- Evolutions (1) 500 Regions Visited (2) 400 Robots Destroyed (68) 340 Value Destroyed (1435) 1435 Prototype IDs (3) 60 Alien Tech Used (0) 0 Bonus (86) 86 TOTAL SCORE: 2821 Bonus ------- High Alert Combat Kills 86 Cogmind --------- Core Integrity 0/400 Matter 265/300 Energy 5/100 System Corruption 7% Temperature Cool (9) Movement Treading (320) Ox2 Location -9/Materials Parts ------- > --- POWER (1) -------- (None) > --- PROPULSION (3) --- Improved Treads > --- UTILITY (3) ------ Heat Sink High-capacity Storage Unit > --- WEAPON (2) ------- Ion Cannon > --- INVENTORY (20) --- Aluminum Leg High-capacity Matter Pod (200) Sensor Array Signal Interpreter Seismic Detector Subdweller Laser Advanced Beam Cannon Light Cannon Maul Peak State ------------ > --- POWER ------------ Subdweller Power Source > --- PROPULSION ------- Light Treads Light Treads Light Treads > --- UTILITY ---------- Improved Heat Sink High-capacity Storage Unit Hardened Light Armor Plating > --- WEAPON ----------- Advanced Beam Cannon Advanced Beam Cannon > --- INVENTORY -------- Improved Ion Engine Light Treads Improved Treads High-capacity Matter Pod Sensor Array Signal Interpreter Improved Terrain Scanner Seismic Detector Subdweller Laser Advanced Beam Cannon Subdweller Beam Cannon Ion Cannon Ion Cannon Light Cannon Mini Grenade Launcher Maul [Rating: 20] Favorites ----------- Power Subdweller Power Source Engine Subdweller Power Source Propulsion Light Treads Treads Light Treads Leg Aluminum Leg Utility High-capacity Storage Unit Device Improved Heat Sink Storage High-capacity Storage Unit Protection Hardened Light Armor Plating Weapon Advanced Beam Cannon Energy Gun Small Laser Energy Cannon Advanced Beam Cannon Launcher Mini Grenade Launcher Build | -11 -10 -9 ------- Run | Yrd Mat Mat Slots Evolved 2 | . . 2 Power . | . . . Propulsion 1 | . . 1 Utility 1 | . . 1 Weapon . | . . . Parts Attached 36 | 8 9 19 Power 5 | 1 2 2 Engine 5 | 1 2 2 Core . | . . . Reactor . | . . . Propulsion 10 | 2 1 7 Treads 7 | 2 1 4 Leg 3 | . . 3 Wheel . | . . . Hover . | . . . Flight . | . . . Utility 9 | 3 3 3 Device 5 | 2 1 2 Storage 3 | 1 2 . Processor . | . . . Hackware . | . . . Protection 1 | . . 1 Artifact . | . . . Weapon 12 | 2 3 7 Energy Gun 5 | 2 1 2 Energy Cannon 6 | . 2 4 Ballistic Gun . | . . . Ballistic Cannon . | . . . Launcher 1 | . . 1 Special Weapon . | . . . Impact Weapon . | . . . Slashing Weapon . | . . . Piercing Weapon . | . . . Special Melee Weapon . | . . . Unidentified Prototypes 3 | . 1 2 Parts Lost 18 | . 2 16 Power 2 | . . 2 Propulsion 7 | . 1 6 Utility 3 | . . 3 Weapon 6 | . 1 5 Highest Loss Streak 13 | . 2 13 To Critical Strikes . | . . . Average Backups 9 | . 6 13 Power 1 | . 1 . Propulsion . | . . . Utility 3 | . 2 4 Weapon 4 | . 2 7 Tool/Special . | . . . Unused Backups 11 | . 2 9 Power 1 | . . 1 Propulsion 1 | . . 1 Utility 3 | . 1 2 Weapon 6 | . 1 5 Tool/Special . | . . . Average Slot Usage (%) 94 | . 99 89 Engine 12 | . 14 10 Treads 21 | . 27 16 Leg 4 | . . 8 Device 15 | . 14 16 Storage 12 | . 14 11 Protection 2 | . . 4 Energy Gun 8 | . 16 . Energy Cannon 16 | . 11 21 Peak Build Rating 20 | 9 15 20 Average Rating 13 | 7 10 17 On Entrance 6 | . 7 13 Naked Turns . | . . . Heaviest Build 63 | 13 54 63 Greatest Support 60 | 40 40 60 Greatest Overweight (x) 17 | 1 1 17 Average Overweight (x) . | . . 1 Largest Inventory Capacity 20 | 8 20 20 Average Capacity 15 | 7 11 20 Most Carried 17 | 2 10 17 Average Carried 9 | . 6 13 Final Capacity 20 | 8 20 20 Final Carried 9 | 2 9 9 Class Distribution -------------------- 52% | Scavenger-Mutant 47% | Mutant Dominant Class ---------------- Mutant | -10/Materials Scavenger-Mutant | -9/Materials Resources | -11 -10 -9 ----------- Run | Yrd Mat Mat Matter Collected 1000 | 280 354 366 Remotely . | . . . Salvage Created 2072 | 231 757 1084 Parts 132 | 20 48 64 Haulers Intercepted 5 | . 2 3 Recyclers Shooed 2 | . 2 . Parts Field Recycled . | . . . Retrieved Matter . | . . . Parts Self-Destructed . | . . . Prevented . | . . . Kills | -11 -10 -9 ------- Run | Yrd Mat Mat Combat Hostiles Destroyed 48 | . 20 28 Guns 16 | . 16 . Cannons 22 | . 3 19 AOE 8 | . . 8 Classes Destroyed 9 | 3 4 2 Worker 4 | 2 1 1 Tunneler 5 | 5 . . Hauler 5 | . 2 3 Recycler 1 | 1 . . Watcher 5 | . 2 3 Swarmer 20 | . 9 11 Grunt 21 | . 11 10 Brawler 2 | . . 2 Sentry 5 | . . 5 Best Kill Streak 7 | 2 4 7 Combat Bots Only 7 | . 3 7 Max Kills in Single Turn 2 | 1 1 2 Gunslinging . | . . . Exploded 2 | . . 2 Melee . | . . . Uniques/NPCs Destroyed . | . . . Combat | -11 -10 -9 -------- Run | Yrd Mat Mat Hostile Shots Fired 298 | . 84 214 Missed 65 | . 17 48 Hits 233 | . 67 166 Melee 7 | . . 7 Projectile 226 | . 67 159 Critical Strikes 5 | . 1 4 Damage Taken 2828 | . 714 2114 Core 518 | . 117 401 Absorbed by Shields . | . . . Core Remaining (%) 76 | 100 53 . Volleys Fired 173 | 18 64 91 Largest 2 | 2 2 2 Hottest 148 | 80 136 148 Shots Fired 322 | 36 128 158 Gun 150 | 36 114 . Cannon 166 | . 14 152 Launcher 6 | . . 6 Special . | . . . Kinetic . | . . . Thermal 316 | 36 128 152 Explosive 6 | . . 6 Electromagnetic . | . . . Robot Hit Streak 16 | 6 16 9 Robot Miss Streak 5 | 5 4 5 Penetration Max . | . . . Secondary Targets 2 | . 2 . Max Gunslinging Chain 1 | . 1 . Shots Hit Robots 191 | 20 84 87 Core Hits 91 | 9 39 43 Critical Kills 2 | . 1 1 Critical Parts Destroyed . | . . . Critical Strikes 2 | . 1 1 Meltdown 2 | . 1 1 Melee Attacks . | . . . Impact . | . . . Slashing . | . . . Piercing . | . . . Sneak Attacks . | . . . Combat Hostiles . | . . . Follow-up Attacks . | . . . Damage Inflicted 3800 | 224 1002 2574 Guns 1125 | 224 901 . Cannons 2133 | . 101 2032 Explosions 542 | . . 542 Melee . | . . . Ramming . | . . . Kinetic . | . . . Thermal 3258 | 224 1002 2032 Explosive 542 | . . 542 Electromagnetic . | . . . Impact . | . . . Slashing . | . . . Piercing . | . . . Highest Corruption 7 | . . 7 Average Corruption 5 | . . 5 Corruption Purged . | . . . Corruption Blocked . | . . . Effects 2 | . . 2 Energy Discharges 2 | . . 2 Overload Shots . | . . . Overflow Damage 68 | . . 68 Projectiles 43 | . . 43 Explosions 25 | . . 25 Melee . | . . . Knockbacks . | . . . Impact . | . . . Kinetic . | . . . Secondary . | . . . Self-Inflicted Damage 49 | . . 49 Shots 1 | . . 1 Rammed . | . . . Targets Rammed . | . . . Kicked . | . . . Crushed . | . . . Highest Temperature 526 | 90 225 526 Average Temperature 91 | 30 72 111 Received Heat Transfer 1083 | . 252 831 Effects 9 | . . 9 Shutdowns 2 | . . 2 Energy Bleed 2 | . . 2 Interference 3 | . . 3 Matter Decay 1 | . . 1 Damage (minor) 1 | . . 1 Siege Activations . | . . . Martial Activations . | . . . Shielding Activations . | . . . Robots Disrupted . | . . . Combat Hostiles . | . . . Robots Corrupted . | . . . Combat Hostiles . | . . . Parts Fried . | . . . Impact Corruptions . | . . . Robots Melted 2 | . 1 1 Combat Hostiles 2 | . 1 1 Parts Melted 6 | . 3 3 Heat Transferred 6112 | 500 2210 3402 Parts Sabotaged . | . . . Parts Stolen . | . . . Parts Stripped . | . . . Power Chain Reactions . | . . . Alert | -11 -10 -9 ------- Run | Yrd Mat Mat Maximum Alert Level 2 | . 1 2 Low Security (%) 83 | 100 99 64 Level 1 6 | . . 13 Level 2 10 | . . 21 Level 3 . | . . . Level 4 . | . . . Level 5 . | . . . High Security . | . . . Max Security . | . . . Peak Influence 511 | 10 202 511 Initial 55 | . . 55 Average 118 | 1 106 154 Influence Increases 1492 | 40 592 860 Destroy 0b10 Robot/C 960 | . 400 560 Destroy 0b10 Robot/NC 100 | 40 25 35 Destroy Leader 210 | . 98 112 Successful Hack 32 | . 23 9 Disable Machine 75 | . 30 45 Destroy Structure 55 | . 1 54 Lose Combat Pursuer 60 | . 15 45 Influence Decreases 1056 | 40 460 556 Entered New Map 77 | . . 77 Time Decay 799 | 40 440 319 Lost Part 180 | . 20 160 Squads Dispatched 9 | . 6 3 Investigation 5 | . 4 1 Extermination . | . . . Reinforcement 2 | . 2 . Assault 2 | . . 2 Garrison . | . . . Intercept . | . . . Searches Triggered . | . . . Construction Impeded . | . . . Haulers Reinforced . | . . . Active Scanning Responses . | . . . Cargo Convoy Interrupts . | . . . Stealth | -11 -10 -9 --------- Run | Yrd Mat Mat Distress Signals 4 | . . 4 Communications Jammed . | . . . Distress Signals . | . . . Times Spotted 83 | . 29 54 Peak Tracking Total 9 | . 4 9 Tactical Retreats 4 | . 1 3 Traps | -11 -10 -9 ------- Run | Yrd Mat Mat Traps Triggered 3 | . 3 . Indirectly . | . . . Trap Hack Attempts . | . . . Triggered . | . . . Disarmed . | . . . Reprogrammed . | . . . Reused . | . . . Traps Extracted . | . . . Installed . | . . . Triggered . | . . . Machines | -11 -10 -9 ---------- Run | Yrd Mat Mat Machines Disabled 5 | . 2 3 Max in Single Turn 1 | . 1 1 Machines Repaired . | . . . Machines Dismantled . | . . . Machines Sabotaged . | . . . Overloaded Fab Kills . | . . . Hacking | -11 -10 -9 --------- Run | Yrd Mat Mat Machines Accessed 6 | . 3 3 Terminals 6 | . 3 3 Fabricators . | . . . Repair Stations . | . . . Recycling Units . | . . . Scanalyzers . | . . . Garrison Access . | . . . Total Hacks 17 | . 8 9 Successful 7 | . 5 2 Failed 10 | . 3 7 Catastrophic . | . . . Database Lockouts . | . . . Manual 17 | . 8 9 Terminals 17 | . 8 9 Fabricators . | . . . Repair Stations . | . . . Recycling Units . | . . . Scanalyzers . | . . . Garrison Access . | . . . Terminal Hacks 2 | . 2 . Robot Analysis 2 | . 2 . Fabricator Hacks . | . . . Repair Station Hacks . | . . . Recycling Unit Hacks . | . . . Scanalyzer . | . . . Garrison Access Hacks . | . . . Unauthorized Hacks 5 | . 3 2 Terminals 5 | . 3 2 Botnet 5 | . 3 2 Fabricators . | . . . Repair Stations . | . . . Recycling Units . | . . . Scanalyzers . | . . . Garrison Access . | . . . Data Cores Recovered . | . . . Used . | . . . Hacking Detections 6 | . 3 3 Full Trace Events 3 | . 2 1 Feedback Events . | . . . Feedback Blocked . | . . . Robot Schematics Acquired . | . . . Robots Built . | . . . Authchips . | . . . Time . | . . . Total Robot Build Rating . | . . . Part Schematics Acquired . | . . . Parts Built . | . . . Authchips . | . . . Time . | . . . Total Part Build Rating . | . . . Parts Repaired . | . . . Time . | . . . Parts Recycled . | . . . Recycled Matter . | . . . Retrieved Matter . | . . . Retrieved Components . | . . . Parts Scanalyzed . | . . . Part Schematics Acquired . | . . . Parts Damaged . | . . . Bothacking | -11 -10 -9 ------------ Run | Yrd Mat Mat Used RIF Installer . | . . . Robots Hacked . | . . . Non-combat . | . . . Combat . | . . . Robot Hacks Applied . | . . . Relay Couplers Released . | . . . Fabnet Peak Effective % . | . . . Robots Rewired . | . . . Allies Hacked . | . . . Hacks Repelled . | . . . Allies | -11 -10 -9 -------- Run | Yrd Mat Mat Total Allies . | . . . Largest Group . | . . . Highest-Rated Group . | . . . Highest-Rated Ally . | . . . Total Orders . | . . . Ally Attacks . | . . . Total Damage . | . . . Kills . | . . . Allies Corrupted . | . . . Allies Melted . | . . . Intel | -11 -10 -9 ------- Run | Yrd Mat Mat Active Infowar (turns) 1956 | 199 853 904 Sensors 17 | . . 17 Terrain 712 | 177 365 170 Seismic 1227 | 22 488 717 Robot Analysis Total 2 | . 2 . Derelict Logs Recovered . | . . . Drone Launches . | . . . Drone Recoveries . | . . . Exploration | -11 -10 -9 ------------- Run | Yrd Mat Mat Turns Passed 2794 | 271 1222 1301 Spaces Moved 1112 | 132 556 424 Core 10 | 7 . 3 Treads 993 | 125 556 312 Legs 109 | . . 109 Wheels . | . . . Hover . | . . . Flight . | . . . Fastest Speed 50 | 50 160 160 Average Speed 190 | 154 173 224 Slowest Speed 900 | 160 240 900 Overloaded Moves . | . . . Propulsion Burnouts . | . . . Robots Hopped . | . . . Potential Cave-ins . | . . . Cave-ins Triggered . | . . . Exploration Rate (%) 44 | 10 78 44 Regions Visited 2 Branch Regions . Pre-discovered Areas . | . . . Known Exits Taken . | . . . Unknown Exits Taken 2 | 1 1 . Scrap Searched . | . . . Spaces Dug . | . . . Terrain Destroyed 55 | . . 55 Melee . | . . . Projectile 5 | . . 5 AOE 50 | . . 50 Terrain Rammed . | . . . Walls Destroyed . | . . . Machines Disabled . | . . . Actions | -11 -10 -9 --------- Run | Yrd Mat Mat Total 1459 | 159 685 615 Wait 81 | . 35 46 Move 1110 | 131 555 424 Hop . | . . . Pick Up 22 | 1 10 11 Fast Attach 19 | 8 3 8 Attach 11 | . 1 10 Detach 8 | 1 2 5 Swap 19 | . 7 12 Drop 16 | . 8 8 Fire 173 | 18 64 91 Melee . | . . . Ram . | . . . Kick . | . . . Crush . | . . . Escape Stasis . | . . . Rewire . | . . . Trap . | . . . Miscellaneous . | . . . Route ------- -11/Scrapyard -10/Materials (discovered 4 exits: *Mat x2 / [*Min] / [*Sub]) -9/Materials (discovered 3 exits: [*Mat] / [*Min x2]) History --------- Turn | Location | Event 3 | -11/Scrapyard | Discovered new exit (range 16) 272 | -11/Scrapyard | Entered Materials 311 | -10/Materials | Build established: Mutant 422 | -10/Materials | Discovered new exit (range 6) 509 | -10/Materials | Discovered new exit (range 4) 847 | -10/Materials | Discovered new exit (range 10) 872 | -10/Materials | Derelicts attacked the area 1245 | -10/Materials | Discovered new exit (range 6) 1494 | -10/Materials | Entered another Materials area 1494 | -9/Materials | Evolved 2 slots: Propulsion x1, Utility x1 1823 | -9/Materials | Build established: Scavenger-Mutant 2053 | -9/Materials | Discovered new exit (range 10) 2488 | -9/Materials | Discovered new exit (range 14) 2547 | -9/Materials | Destroyed 7 combat bots 2554 | -9/Materials | Discovered new exit (range 15) 2694 | -9/Materials | First assault squad dispatched 2737 | -9/Materials | Core integrity fell below 50% 2772 | -9/Materials | Core integrity fell below 20% 2795 | -9/Materials | Destroyed by G-47 Trooper with Particle Gun Last Messages --------------- 02745_ K-01 Serf collects debris. 02746_ Aluminum Leg destroyed. 02747_ K-01 Serf collects debris. 02755_ Imp. Ion Engine destroyed. 02759_ K-01 Serf collects debris. 02763_ System corrupted: Energy discharge (-30). 02765_ K-01 Serf collects debris. 02766_ Imp. Terrain Scanner destroyed. 02766_ System corrupted by crushing effect (+3). 02767_ Ion Cannon destroyed. 02770_ K-01 Serf collects debris. 02774_ Acquired Heat Sink. 02775_ K-01 Serf collects debris. 02779_ B-36 Bruiser destroyed. 02779_ K-01 Serf collects debris. 02785_ Sub. Beam Cannon destroyed. 02785_ Critical hit (Burn: +37). 02786_ K-01 Serf collects debris. 02792_ System corrupted: Energy discharge (-5). 02794_ K-01 Serf collects debris. Map ----- +----------------------------------------------------+ | ????????????????????????????????????? | | ??????????????????????????????#?????? | | ???????????????????????????#????????? | | ????????????????????????????????????? | | ??????????????????#????#?#??????????? | | ????????????????????????????????????? | | ???????????????????????????????###### | | ???????????????#######????????? # | | ???????????????# ?#####? # | | ???????????????# ?# #? ? | | ???????????????# # < # """ # | | ???????????????# # # """ # | | ????????######?# + + """ # | | ??????### ?# # # # | | ?????? %! ?# # # """ # | | ??????? [<= ?+ # # """ ? | | ???????? [ * ?# ?# #? """ ? | | ????????#%* ########### #? ? | | ????????#*%= ??????????# ######### | | ????????##= ##???????#?# ## # | | ????????## ??#??#????# ## # | | ????????## ##?????#??## %## # | | ?????????# #??#????### ## # | | ?????????# %##########; # # | | ?????????# % %= =# * # | | ?????????# !% =%[ ==m%@ %+[ # | | ???????### m = *% g k!#= # | | ??????## ##!##### *% ## # # | | ?????## ## # ## %=% ####### # | | ??#########+# ## [== #?#?#?# !| # | | ??# |# ## * #????## !| # | | ??# # ## #???#?# # | | #?# % ##?## ##????## ##### | | ### ##??# """ #?????####???? | | ## !! ##??# """ ????????????? | | ### !! ##??# """ ##????#??#??#? | | #?# !! #???# #????????????? | | #?# % #???# """ #???????????#? | | #?#####+#####???#???? #????????????? | | #####* %![####### "?? ##???????????? | | *%*! = + ? #???????#??#?? | | [*[ T ###+??###??#?????????? | | ! #????????????????????? | | ##### ## #????????????????????? | | ????# #####? #??????????????????#?? | | ????# #?????? ???????????????????? | | ????# #??????? ?????????????????? | | ????# #???????? ????????????????? | | ????# #?????????##+#????????????????? | | ????# #?????????????????????????????? | +----------------------------------------------------+ Best States ------------- Heat Dissipation 42 Energy Generation 15 Energy Capacity 265 Matter Stores 300 Matter Capacity 300 Sight Range 16 Robot Scan Range 14 Terrain Scan Range 16 Terrain Scan Density 10 Armor Coverage 150 Evasion (%) 40 Recoil Reduction 3 Item Schematics ----------------- None Robot Schematics ------------------ None Fabricated ------------ Nothing Repaired ---------- Nothing Alien Tech Used ----------------- None Achievements -------------- None Challenges ------------ None Game ------ Seed DisruptorLightBotcube Manual? 0 Play Time 00:28:05 Cumulative 73.8 hours Start 2025.06.22 @ 15:05:56 End 2025.06.23 @ 22:51:02 Sessions 3 Manual Loads 0 Difficulty Rogue Special Mode None Game No. 101 Rogue 101 Adventurer 0 Explorer 0 Win Type - Total 1 Types 1/0/0/0/0/0/0/0/0/0 Lore% 40 Gallery% 41 Achievement% 39 Wizard Run 0 Options --------- Layout 2 ASCII 0 Keyboard 1 Movement Numpad Keybinds 0 Fullscreen 1 Font 32/Smallcaps Map View 50x44 Zoom Use 0% Tactical HUD 1 Map Filters NONE Filters NONE Steam 1 RUN: 39850f19-5b57-4e24-b531-80f948075e59